[Event "SWE-ch -50 2018"]
[Site "Ronneby"]
[Date "2018.07.05"]
[Round "6"]
[White "Moborn, Anders"]
[Black "Gamback, Bjorn"]
[Result "0-1"]
[ECO "E12"]
[WhiteElo "2045"]
[BlackElo "2108"]
[Annotator "NA"]
[PlyCount "112"]
[EventDate "2018.06.30"]
[EventType "tourn"]
[EventCountry "SWE"]
[SourceTitle "playchess.com"]
[Source "ChessBase"]
[SourceQuality "1"]
[TimeControl "40/5400+30:1800+30"]

1. d4 {[%emt 0:00:00]} Nf6 {[%emt 0:03:07]} 2. c4 {[%emt 0:00:37]} e6 {[%emt 0:00:15]} 3. Nf3 {[%emt 0:00:24]} b6 {[%emt 0:00:33]} 4. Bg5 {[%emt 0:02:24]} Bb7 {[%emt 0:01:48]} 5. e3 {[%emt 0:01:15]} Bb4+ {[%emt 0:03:02] E12: Damenindisch (Petrosjan-System und 4. oder 5.Lg5)} (5... h6 6. Bh4 Be7 7. Nc3 Ne4 8. Nxe4 Bxh4 9. Bd3 Be7 10. O-O O-O 11. Nc3 d5 12. cxd5 exd5 13. Ne5 Nd7 14. f4 c5 15. Qf3 Nf6 {1-0 (93) Kozul,Z (2597)-Fedorchuk,S (2666) Warsaw 2013}) 6. Nbd2 {[%emt 0:01:10]} h6 {[%emt 0:00:29]} 7. Bxf6 {[%emt 0:04:20]} Qxf6 {[%emt 0:00:08] LiveBook: 3 Games} 8. Be2 {[%emt 0:01:38]} c5 {[%emt 0:06:21]} 9. a3 {[%emt 0:04:38]} Bxd2+ {[%emt 0:01:15]} 10. Qxd2 {[%emt 0:02:32]} cxd4 $146 {[%emt 0:00:33]} ({Vorgänger:} 10... O-O 11. O-O d6 12. Rfd1 Nc6 13. Qc2 {0-1 (25) Loftsson,A-Thorfinnsson,B (2218) Reykjavik 2000}) 11. Qxd4 {[%emt 0:00:27]} Qxd4 {[%emt 0:00:32]} 12. Nxd4 {[%emt 0:00:11]} a6 {[%emt 0:03:04]} 13. O-O {[%emt 0:03:22]} d6 {[%emt 0:03:37]} 14. Rfd1 {[%emt 0:04:18]} Ke7 {[%emt 0:00:57]} 15. Rd2 {[%emt 0:05:29]} Nd7 {[%emt 0:03:48]} 16. Rad1 {[%emt 0:05:43]} Rhd8 {[%emt 0:01:57]} 17. f3 {[%emt 0:03:27]} Rac8 {[%emt 0:01:56]} 18. e4 {[%emt 0:01:22]} Ne5 {[%emt 0:01:02]} 19. b3 $11 {[%emt 0:00:31]} Nd7 {[%emt 0:08:42]} 20. Kf2 {[%emt 0:02:53]} Nc5 {[%emt 0:00:39]} 21. Ke3 {[%emt 0:02:26]} g6 {[%emt 0:01:50]} 22. b4 {[%emt 0:12:44]} e5 {[%emt 0:10:16]} 23. Nc2 {[%emt 0:09:38]} Ne6 {[%emt 0:07:10]} 24. g3 {[%emt 0:02:58]} f5 {[%emt 0:04:32]} 25. Bd3 {[%emt 0:08:55]} fxe4 {[%emt 0:06:35]} 26. fxe4 {[%emt 0:00:07]} Rf8 {[%emt 0:00:38]} 27. Rf1 {[%emt 0:01:02]} Rxf1 {[%emt 0:05:55]} 28. Bxf1 {[%emt 0:00:06]} Ng5 {[%emt 0:00:09]} 29. Bd3 {[%emt 0:01:20]} Rf8 {[%emt 0:00:41]} 30. Ne1 {[%emt 0:00:27]} Nh7 {[%emt 0:02:34]} 31. Rf2 {[%emt 0:01:33]} Nf6 {[%emt 0:00:46]} 32. h3 {[%emt 0:01:14]} Bc8 {[%emt 0:00:59]} 33. Bf1 {[%emt 0:01:00]} Be6 {[%emt 0:01:05]} 34. Nd3 {[%emt 0:02:33]} Rc8 {[%emt 0:02:19]} 35. Nb2 {[%emt 0:01:09]} a5 {[%emt 0:03:12]} 36. Na4 {[%emt 0:02:56]} axb4 {[%emt 0:01:36]} 37. axb4 {[%emt 0:01:07]} Nd7 {[%emt 0:01:21]} 38. Nb2 {[%emt 0:02:03]} Ra8 {[%emt 0:00:50]} 39. Rd2 {[%emt 0:00:31]} Nb8 {[%emt 0:02:05]} 40. b5 {[%emt 0:04:54]} Nd7 {[%emt 0:00:37]} 41. Nd1 {[%emt 0:05:35]} Ra1 {[%emt 0:03:12]} 42. Kf2 {[%emt 0:01:09]} Nc5 {[%emt 0:00:47]} 43. Kf3 {[%emt 0:02:04]} Ra3+ {[%emt 0:00:30]} 44. Ne3 {[%emt 0:00:37]} Bc8 {[%emt 0:03:18]} 45. Bg2 {[%emt 0:03:22]} Bb7 {[%emt 0:00:24]} 46. Kf2 {[%emt 0:01:55]} Nxe4+ {[%emt 0:03:12]} 47. Bxe4 {[%emt 0:00:07]} Bxe4 {[%emt 0:00:05]} 48. Ke2 {[%emt 0:00:49]} Ke6 {[%emt 0:01:59]} 49. Kf2 {[%emt 0:00:24]} Ra1 {[%emt 0:01:43]} 50. Nf1 {[%emt 0:05:07]} Rc1 {[%emt 0:01:52]} 51. Ne3 {[%emt 0:00:10]} Ra1 {[%emt 0:04:46]} 52. h4 {[%emt 0:00:36]} h5 {[%emt 0:01:40]} 53. Rb2 {[%emt 0:01:09]} Rh1 {[%emt 0:01:15]} 54. Nf1 {[%emt 0:00:20]} Bd3 {[%emt 0:00:41]} 55. Nd2 {[%emt 0:02:43]} Rc1 {[%emt 0:01:33]} 56. Ke3 {[%emt 0:02:06]} Bxc4 {[%emt 0:00:49]} 0-1

[Event "SWE-ch -50 2018"]
[Site "Ronneby"]
[Date "2018.07.05"]
[Round "6"]
[White "Gemzell, Ted"]
[Black "Cramling, Dan"]
[Result "0-1"]
[ECO "A41"]
[WhiteElo "1990"]
[BlackElo "2355"]
[Annotator "NA"]
[PlyCount "78"]
[EventDate "2018.06.30"]
[EventType "tourn"]
[EventCountry "SWE"]
[SourceTitle "playchess.com"]
[Source "ChessBase"]
[SourceQuality "1"]
[TimeControl "40/5400+30:1800+30"]

{[%evp 8,49,12,2,-2,-13,-7,-20,-18,-5,-21,-21,-27,-28,-39,-34,-25,32767,32767,-91,-76,-73,-72,-75,-55,32767,32767,-93,-116,-154,-147,-148,-146,32767,-156,-150,-157,-143,-149,-144,-141,-188,-197,-179]} 1. d4 {[%emt 0:00:00]} d6 {[%emt 0:01:03]} 2. Nf3 {[%emt 0:00:00]} g6 {[%emt 0:00:13]} 3. Bf4 {[%emt 0:01:06]} Bg7 {[%emt 0:00:22]} 4. e3 {[%emt 0:00:21]} Nd7 {[%emt 0:02:41]} 5. c3 {[%emt 0:02:55]} e5 {[%emt 0:02:39]} 6. dxe5 {[%emt 0:02:23]} dxe5 {[%emt 0:00:13]} 7. Bg3 {[%emt 0:02:08] A41: 1 d4 d6: Tartakower System and Modern Defence} Qe7 {[%emt 0:01:04] LiveBook: 4 Partien} 8. Nbd2 {[%emt 0:04:54]} (8. Na3 Nh6 9. Bh4 f6 10. Bc4 Nb6 11. Bb3 Nf5 12. e4 Nxh4 13. Nxh4 f5 14. Nf3 fxe4 {1-0 (34) Cori Tello,J (2648)-Movsziszian,K (2519) Vallfogona de Balague 2017}) 8... Ngf6 {[%emt 0:05:32]} 9. h3 {[%emt 0:00:58]} O-O {[%emt 0:01:01]} 10. Bc4 {[%emt 0:01:00]} e4 $146 {[%emt 0:02:51]} ({Predecessor:} 10... b6 11. O-O Bb7 12. Qc2 Ne8 13. a3 Nd6 14. Ba2 Kh8 {0-1 (58) Dreiseitel,W (1514)-Hauf,N (1936) Nuremberg 2013}) 11. Nd4 {[%emt 0:04:55]} Ne5 {[%emt 0:01:01]} 12. Bxe5 {[%emt 0:01:29]} Qxe5 {[%emt 0:00:14]} 13. Qe2 {[%emt 0:01:22]} c5 {[%emt 0:20:45]} 14. f4 {[%emt 0:08:03]} exf3 {[%emt 0:03:10]} 15. N4xf3 {[%emt 0:00:22]} Qe7 {[%emt 0:07:19]} 16. O-O {[%emt 0:06:07]} Be6 {[%emt 0:02:55]} 17. Rae1 {[%emt 0:02:46] [#]} ({Better is} 17. e4 $15) 17... Nh5 $1 {[%emt 0:03:26]} 18. Bxe6 {[%emt 0:04:02]} Ng3 {[%emt 0:01:20]} ({Auf keinen Fall} 18... Qxe6 19. Qb5 $15) 19. Qc4 {[%emt 0:00:37]} Nxf1 {[%emt 0:00:27]} ({Don't play} 19... fxe6 $6 20. Rf2 $11) ({But not} 19... Qxe6 $6 20. Qxe6 fxe6 21. Rf2 $15) 20. Bxf7+ {[%emt 0:03:30]} Qxf7 {[%emt 0:00:54]} 21. Qxf7+ {[%emt 0:01:03]} Rxf7 {[%emt 0:00:11]} 22. Kxf1 {[%emt 0:01:20]} Rd8 {[%emt 0:00:37]} 23. Ke2 {[%emt 0:00:12]} Re7 {[%emt 0:01:21]} 24. Rf1 {[%emt 0:01:38]} Bh6 {[%emt 0:02:15]} 25. e4 $19 {[%emt 0:01:11]} Red7 {[%emt 0:06:00]} 26. Nc4 {[%emt 0:01:40]} b5 {[%emt 0:01:06]} 27. Ne3 {[%emt 0:02:38]} Bxe3 {[%emt 0:08:03]} 28. Kxe3 {[%emt 0:00:14]} Rd1 {[%emt 0:01:06]} 29. Rf2 {[%emt 0:03:32]} R1d3+ {[%emt 0:01:52]} 30. Ke2 {[%emt 0:05:20]} c4 {[%emt 0:00:51]} 31. Rf1 {[%emt 0:03:22]} Re8 {[%emt 0:03:49]} 32. e5 {[%emt 0:00:43]} g5 {[%emt 0:02:03]} 33. g4 {[%emt 0:09:44]} h6 {[%emt 0:01:02]} 34. Rf2 {[%emt 0:09:36]} Rf8 {[%emt 0:02:21]} 35. Rf1 {[%emt 0:04:26]} a6 {[%emt 0:01:08]} 36. Rf2 {[%emt 0:00:40]} Rf4 {[%emt 0:00:27]} 37. Rf1 {[%emt 0:00:49]} Kf7 {[%emt 0:02:17]} 38. h4 {[%emt 0:02:37]} gxh4 {[%emt 0:02:01]} 39. g5 {[%emt 0:00:25]} Rfxf3 {[%emt 0:01:36]} 0-1

[Event "SWE-ch -50 2018"]
[Site "Ronneby"]
[Date "2018.07.05"]
[Round "6"]
[White "Andersson, Kjell-Ake"]
[Black "Winfridsson, Hakan"]
[Result "1-0"]
[ECO "A12"]
[WhiteElo "1912"]
[BlackElo "2007"]
[Annotator "NA"]
[PlyCount "63"]
[EventDate "2018.06.30"]
[EventType "tourn"]
[EventCountry "SWE"]
[SourceTitle "playchess.com"]
[Source "ChessBase"]
[SourceQuality "1"]
[TimeControl "40/5400+30:1800+30"]

{[%evp 8,46,12,10,18,32767,32767,-5,32767,32767,32767,-4,0,-4,32767,32767,0,32767,-2,-5,38,38,24,43,72,78,71,60,331,354,356,353,331,32767,32767,32767,32767,365,32767,32767,318]} 1. Nf3 {[%emt 0:00:00]} Nf6 {[%emt 0:07:56]} 2. c4 {[%emt 0:00:38]} c6 {[%emt 0:00:33]} 3. b3 {[%emt 0:01:33]} d5 {[%emt 0:00:25]} 4. Bb2 {[%emt 0:00:23]} Bf5 {[%emt 0:00:51]} 5. d3 {[%emt 0:00:31]} e6 {[%emt 0:00:11]} 6. g3 {[%emt 0:00:09]} Be7 {[%emt 0:00:38]} 7. Bg2 {[%emt 0:01:20]} O-O {[%emt 0:00:20]} 8. Nbd2 {[%emt 0:00:29]} Nbd7 {[%emt 0:00:24]} 9. O-O {[%emt 0:00:45]} h6 {[%emt 0:02:28]} 10. a3 {[%emt 0:02:29] LiveBook: 219 Games} a5 {[%emt 0:02:48]} 11. Bc3 {[%emt 0:01:01]} Qb6 {[%emt 0:03:34] A12: Reti-Eröffnung (New-Yorker-System)} (11... Bh7 12. b4 axb4 13. axb4 dxc4 14. dxc4 Qc7 15. Qb3 Ne4 16. Nxe4 Bxe4 17. Bh3 Bf6 18. Nd2 Bg6 19. c5 b6 20. Bxf6 Nxf6 21. Nc4 bxc5 22. bxc5 {1-0 (44) Romanov,E (2577)-Mammadov,Z (2500) Golden Sands 2015}) 12. b4 {[%emt 0:08:21]} axb4 {[%emt 0:01:20]} 13. axb4 {[%emt 0:00:07]} dxc4 $146 {[%emt 0:00:20]} ({Vorgänger:} 13... Rfd8 14. Qb3 dxc4 15. Nxc4 Qc7 16. Nd4 Bg6 17. Na5 Nd5 18. Bxd5 exd5 19. Rfb1 {0-1 (42) Nadirjanova,N (2150)-Abdusattorova,B (2234) Tashkent 2015}) 14. Nxc4 {[%emt 0:00:31]} Qc7 {[%emt 0:00:22]} 15. Qb3 {[%emt 0:02:45]} Rfc8 {[%emt 0:08:43]} 16. Qb2 {[%emt 0:07:18]} Ne8 {[%emt 0:06:32]} 17. Nfe5 {[%emt 0:03:40]} Bf6 $2 {[%emt 0:01:37]} (17... Nxe5 $16 {is a better defense.} 18. Bxe5 Bf6) 18. Nxd7 {[%emt 0:00:47]} Bxc3 {[%emt 0:01:06]} 19. Qxc3 {[%emt 0:00:18]} Qxd7 {[%emt 0:00:02]} 20. Rxa8 {[%emt 0:01:18]} Rxa8 {[%emt 0:00:02]} 21. Nb6 {[%emt 0:00:17]} Qd8 {[%emt 0:00:02]} 22. Nxa8 {[%emt 0:00:25]} Qxa8 {[%emt 0:00:02]} 23. Ra1 {[%emt 0:00:31]} Qb8 $18 {[%emt 0:00:22]} 24. Qc5 {[%emt 0:04:42]} Nd6 {[%emt 0:00:51]} 25. e4 {[%emt 0:02:41]} Bg6 {[%emt 0:00:03]} 26. Qe5 {[%emt 0:01:16]} Qd8 {[%emt 0:01:37]} 27. Qd4 {[%emt 0:01:07]} Qc7 {[%emt 0:00:08]} 28. Ra8+ {[%emt 0:01:24]} Kh7 {[%emt 0:00:02]} 29. Bf1 {[%emt 0:03:56]} Nc8 {[%emt 0:04:32]} 30. Qc5 {[%emt 0:03:46]} Nd6 {[%emt 0:05:46]} 31. e5 {[%emt 0:05:21]} Nb5 {[%emt 0:00:10]} 32. d4 {[%emt 0:01:49]} 1-0

[Event "SWE-ch -50 2018"]
[Site "Ronneby"]
[Date "2018.07.06"]
[Round "7"]
[White "Cramling, Dan"]
[Black "Nilsson, Patrik"]
[Result "1-0"]
[ECO "E92"]
[WhiteElo "2355"]
[BlackElo "2229"]
[Annotator "NA"]
[PlyCount "75"]
[EventDate "2018.06.30"]
[EventType "tourn"]
[EventCountry "SWE"]
[SourceTitle "playchess.com"]
[Source "ChessBase"]
[SourceQuality "1"]
[TimeControl "40/5400+30:1800+30"]

{[%evp 13,66,32,32767,32767,32767,32767,32767,30,34,32767,31,27,32767,21,61,32767,54,49,72,83,95,32767,105,137,179,204,189,218,182,227,166,225,225,219,231,159,143,145,160,32767,155,32767,200,-20,133,119,32767,32767,32767,32767,32767,126,32767,32767,250]} 1. d4 {[%emt 0:00:11]} Nf6 {[%emt 0:00:00]} 2. c4 {[%emt 0:00:10]} g6 {[%emt 0:00:00]} 3. Nc3 {[%emt 0:00:14]} Bg7 {[%emt 0:00:00]} 4. e4 {[%emt 0:00:48]} d6 {[%emt 0:00:00]} 5. Nf3 {[%emt 0:00:28]} O-O {[%emt 0:00:06]} 6. Be2 {[%emt 0:00:13]} e5 {[%emt 0:00:10]} 7. d5 {[%emt 0:00:15]} a5 {[%emt 0:00:18]} 8. Be3 {[%emt 0:00:16]} Ng4 {[%emt 0:03:07]} 9. Bg5 {[%emt 0:04:10]} f6 {[%emt 0:05:11]} 10. Bh4 {[%emt 0:00:14]} Na6 {[%emt 0:01:42]} 11. Nd2 {[%emt 0:02:41]} Nh6 {[%emt 0:00:35] LiveBook: 24 Games} 12. a3 {[%emt 0:02:07] E92: King's Indian: Classical: 6 Be2 e5: 7 dxe5, 7 Be3 and Petrosian System without 7...Nbd7} Qe8 {[%emt 0:06:06]} 13. b4 $146 {[%emt 0:01:56]} ({Predecessor:} 13. O-O Bd7 14. b3 f5 15. Rb1 Nc5 16. f3 Nf7 17. b4 axb4 18. axb4 Na4 19. Qc2 Bh6 {1-0 (47) Khegay,D (2482)-Obolentseva,A (2283) Voronezh 2017}) 13... f5 {[%emt 0:02:40]} 14. f3 {[%emt 0:01:22]} Bd7 {[%emt 0:03:04]} 15. Rb1 {[%emt 0:04:30]} Bf6 {[%emt 0:03:51]} 16. Bf2 {[%emt 0:01:58]} axb4 {[%emt 0:04:26]} 17. axb4 {[%emt 0:00:20]} Qe7 {[%emt 0:02:48] [#]} 18. c5 $1 {[%emt 0:05:46]} fxe4 {[%emt 0:04:57]} 19. Ndxe4 {[%emt 0:01:50]} ({Resist} 19. Ncxe4 $6 Bf5 $16) 19... Nf5 {[%emt 0:03:54] [#]} 20. c6 $1 {[%emt 0:01:58]} bxc6 {[%emt 0:02:57]} 21. dxc6 {[%emt 0:03:08]} Be6 {[%emt 0:02:00]} 22. Nd5 {[%emt 0:04:04]} Bxd5 {[%emt 0:01:30]} 23. Qxd5+ {[%emt 0:00:14]} Kg7 {[%emt 0:01:37]} 24. b5 {[%emt 0:18:04]} Nc5 {[%emt 0:14:28]} 25. Nxc5 {[%emt 0:01:36]} dxc5 {[%emt 0:00:11]} 26. Bxc5 {[%emt 0:00:14]} Rfd8 {[%emt 0:00:41]} 27. Qc4 {[%emt 0:01:02]} Qe8 {[%emt 0:02:27]} 28. Bd3 $2 {[%emt 0:11:19]} (28. O-O $18) 28... e4 $2 {[%emt 0:05:41]} (28... Rd4 $1 $15 {behält die Oberhand.} 29. Qc2 (29. Bxd4 exd4+ 30. Kf2 Qe3+ 31. Kf1 Qd2 $19) 29... Ne3) 29. Bxe4 {[%emt 0:02:52]} ({But not} 29. fxe4 $6 Qe5 $11) 29... Nd6 {[%emt 0:04:25]} 30. Qc2 {[%emt 0:03:43]} Qe6 {[%emt 0:02:38]} 31. O-O {[%emt 0:02:52]} Ra2 {[%emt 0:06:05] [#]} 32. Qd3 $1 {[%emt 0:02:49]} Nc4 {[%emt 0:03:05]} 33. Qb3 {[%emt 0:00:27]} Rdd2 $18 {[%emt 0:03:34]} 34. Rf2 {[%emt 0:00:19]} Rxf2 {[%emt 0:01:12]} 35. Bxf2 {[%emt 0:00:13]} Ra3 {[%emt 0:04:15]} 36. Qc2 {[%emt 0:08:18]} Bc3 {[%emt 0:04:00]} 37. Rd1 {[%emt 0:03:23]} Nd6 {[%emt 0:02:16]} 38. Bc5 {[%emt 0:01:52]} 1-0

[Event "SWE-ch -50 2018"]
[Site "Ronneby"]
[Date "2018.07.06"]
[Round "7"]
[White "Gamback, Bjorn"]
[Black "Andersson, Erik"]
[Result "1-0"]
[ECO "A30"]
[WhiteElo "2108"]
[BlackElo "1656"]
[Annotator "NA"]
[PlyCount "141"]
[EventDate "2018.06.30"]
[EventType "tourn"]
[EventCountry "SWE"]
[SourceTitle "playchess.com"]
[Source "ChessBase"]
[SourceQuality "1"]
[TimeControl "40/5400+30:1800+30"]

1. c4 {[%emt 0:00:31]} c5 {[%emt 0:00:00]} 2. Nf3 {[%emt 0:00:47]} Nf6 {[%emt 0:00:15]} 3. e3 {[%emt 0:01:19]} e6 {[%emt 0:02:59]} 4. b3 {[%emt 0:00:21]} b6 {[%emt 0:02:04]} 5. Bb2 {[%emt 0:00:35]} Bb7 {[%emt 0:00:10]} 6. d3 {[%emt 0:00:26] A30: Symmetrical English: Double Fianchetto and Hedgehog} (6. Be2 Be7 7. d4 cxd4 8. Nxd4 O-O 9. O-O d6 10. Bf3 Qc8 11. Nc3 Nbd7 12. Qe2 a6 13. Rad1 Rd8 14. Bxb7 Qxb7 15. e4 Rac8 16. f4 Nc5 17. Rfe1 {½-½ (52) Grischuk,A (2772)-Yu,Y (2751) Huaian 2017}) 6... Be7 {[%emt 0:00:53]} 7. Nbd2 {[%emt 0:03:29]} O-O {[%emt 0:00:29]} 8. Be2 {[%emt 0:00:21] LiveBook: 4 Games} Nc6 {[%emt 0:05:39]} 9. a3 {[%emt 0:00:56]} d5 {[%emt 0:04:17]} 10. cxd5 {[%emt 0:01:31]} Nxd5 {[%emt 0:00:36]} 11. Qc2 {[%emt 0:06:52]} Bf6 {[%emt 0:04:56]} 12. Bxf6 $146 {[%emt 0:03:12]} ({Predecessor:} 12. O-O Bxb2 13. Qxb2 Qf6 14. Qxf6 Nxf6 15. Nc4 Rfd8 16. Rfc1 Ne8 17. Rab1 Nd6 18. b4 Nxc4 19. dxc4 cxb4 20. axb4 {½-½ (40) Antoniewski,R (2491)-Vyskocil,N (2387) Moravia 2003}) 12... Nxf6 {[%emt 0:00:10]} 13. O-O {[%emt 0:00:41]} Rc8 {[%emt 0:01:36]} 14. Rac1 {[%emt 0:00:28]} Qe7 {[%emt 0:02:19]} 15. Qb1 {[%emt 0:02:59]} Rfd8 {[%emt 0:04:05]} 16. Rfd1 {[%emt 0:01:05]} Rd7 {[%emt 0:06:14]} 17. Bf1 {[%emt 0:02:43]} Re8 {[%emt 0:10:11]} 18. Qa1 {[%emt 0:21:09]} h6 {[%emt 0:07:07]} 19. Rc2 {[%emt 0:08:00]} Rc7 {[%emt 0:06:09]} 20. Rdc1 {[%emt 0:01:14]} Rcc8 {[%emt 0:01:20]} 21. Nc4 {[%emt 0:04:45]} Nd7 {[%emt 0:04:44]} 22. d4 {[%emt 0:03:26]} Red8 {[%emt 0:03:11]} 23. Rd2 {[%emt 0:06:33]} cxd4 {[%emt 0:06:40]} 24. exd4 $15 {[%emt 0:00:34]} Nf6 {[%emt 0:03:27]} 25. b4 {[%emt 0:02:17]} b5 {[%emt 0:05:04]} 26. Ne3 {[%emt 0:06:31]} a6 {[%emt 0:02:00]} 27. Qb2 {[%emt 0:06:09]} Nb8 {[%emt 0:01:42]} 28. Ne5 {[%emt 0:00:59]} Nbd7 {[%emt 0:02:55]} 29. Rdc2 {[%emt 0:02:04]} Qd6 {[%emt 0:02:34]} 30. Rxc8 {[%emt 0:03:02]} Rxc8 {[%emt 0:00:20]} 31. Rxc8+ {[%emt 0:00:10]} Bxc8 {[%emt 0:00:01]} 32. Nd3 {[%emt 0:00:13]} Bb7 {[%emt 0:00:44]} 33. Nc5 {[%emt 0:00:19]} Bd5 {[%emt 0:01:46]} 34. Qc2 {[%emt 0:02:19]} Nb8 {[%emt 0:00:31]} 35. Qc3 {[%emt 0:02:43]} Kf8 {[%emt 0:00:56]} 36. h3 {[%emt 0:00:56]} Nfd7 {[%emt 0:00:22]} 37. Qd3 {[%emt 0:02:00]} Nf6 {[%emt 0:01:32]} 38. Qc2 {[%emt 0:01:29]} Ba8 {[%emt 0:01:00]} 39. Nb3 {[%emt 0:01:58]} Qc6 {[%emt 0:01:41]} 40. Qc5+ {[%emt 0:00:09]} Ke8 {[%emt 0:03:12]} 41. Qa7 {[%emt 0:32:06]} Qb7 {[%emt 0:31:45]} 42. Qc5 {[%emt 0:00:00]} Qc6 {[%emt 0:00:00]} 43. Na5 {[%emt 0:00:00]} Qxc5 {[%emt 0:00:00]} 44. dxc5 {[%emt 0:00:00]} Ng8 {[%emt 0:00:00]} 45. f3 {[%emt 0:00:00]} Ne7 {[%emt 0:00:00]} 46. Kf2 {[%emt 0:00:00]} Kd7 {[%emt 0:00:00]} 47. Bd3 {[%emt 0:00:00]} Nd5 {[%emt 0:00:00]} 48. Nxd5 {[%emt 0:00:00]} Bxd5 {[%emt 0:00:00]} 49. Ke3 {[%emt 0:00:00]} Kc7 {[%emt 0:00:00]} 50. Be4 {[%emt 0:00:00]} Bxe4 {[%emt 0:00:00]} 51. Kxe4 {[%emt 0:00:00]} Nd7 {[%emt 0:00:00]} 52. Nb3 {[%emt 0:00:00]} Nf6+ {[%emt 0:00:00]} 53. Kd4 {[%emt 0:00:00]} Nh5 {[%emt 0:00:00]} 54. Ke3 {[%emt 0:00:00]} Nf6 {[%emt 0:00:00]} 55. h4 {[%emt 0:00:08]} Nd5+ {[%emt 0:00:00]} 56. Kd4 {[%emt 0:00:17]} Nf6 {[%emt 0:00:00]} 57. Nc1 {[%emt 0:00:55]} Kc6 {[%emt 0:00:00]} 58. Nd3 {[%emt 0:00:13]} Kd7 {[%emt 0:00:17]} 59. Ne5+ {[%emt 0:00:16]} Ke7 {[%emt 0:00:58]} 60. Nc6+ {[%emt 0:02:27]} Kd7 {[%emt 0:01:02]} 61. Ne5+ {[%emt 0:00:05]} Ke7 {[%emt 0:00:25]} 62. Nd3 {[%emt 0:00:38]} Nd5 {[%emt 0:00:23]} 63. g3 {[%emt 0:00:25]} f6 {[%emt 0:00:32]} 64. Nf2 {[%emt 0:01:20]} Nc7 {[%emt 0:01:01]} 65. f4 {[%emt 0:01:01]} Ne8 {[%emt 0:00:17]} 66. Ne4 {[%emt 0:01:08]} Kd7 {[%emt 0:00:15]} 67. Nc3 {[%emt 0:00:33]} Nc7 {[%emt 0:00:30]} 68. a4 {[%emt 0:00:58]} Kc6 {[%emt 0:00:34]} 69. a5 {[%emt 0:00:35]} Nd5 {[%emt 0:00:26]} 70. Nxd5 {[%emt 0:00:15]} exd5 {[%emt 0:00:15]} 71. h5 {[%emt 0:01:14]} 1-0

[Event "SWE-ch -50 2018"]
[Site "Ronneby"]
[Date "2018.07.06"]
[Round "7"]
[White "Winfridsson, Hakan"]
[Black "Gemzell, Ted"]
[Result "1/2-1/2"]
[ECO "B33"]
[WhiteElo "2007"]
[BlackElo "1990"]
[Annotator "NA"]
[PlyCount "68"]
[EventDate "2018.06.30"]
[EventType "tourn"]
[EventCountry "SWE"]
[SourceTitle "playchess.com"]
[Source "ChessBase"]
[SourceQuality "1"]
[TimeControl "40/5400+30:1800+30"]

1. e4 {[%emt 0:00:00]} c5 {[%emt 0:00:00]} 2. Nf3 {[%emt 0:00:00]} Nc6 {[%emt 0:00:00]} 3. d4 {[%emt 0:00:10]} cxd4 {[%emt 0:00:04]} 4. Nxd4 {[%emt 0:00:05]} Nf6 {[%emt 0:00:06]} 5. Nc3 {[%emt 0:00:16]} g6 {[%emt 0:00:21]} 6. Nxc6 {[%emt 0:02:24]} dxc6 {[%emt 0:00:10] B34: Sizilianisch (Beschleunigtes Fianchetto)} 7. Qxd8+ {[%emt 0:00:27]} Kxd8 {[%emt 0:00:05]} 8. Bg5 {[%emt 0:01:35]} (8. Bc4 Ke8 9. Bf4 Nd7 10. e5 Bg7 11. e6 fxe6 12. Bxe6 Rf8 13. Bd2 Nc5 14. Bxc8 Rxc8 15. f3 Rd8 16. O-O-O Bxc3 17. Bxc3 Rxd1+ 18. Rxd1 {½-½ (46) Leko,P (2708)-Ivanchuk,V (2720) Reykjavik 2015}) 8... h6 {[%emt 0:02:54]} 9. O-O-O+ {[%emt 0:04:57]} Ke8 {[%emt 0:03:59]} 10. Bh4 {[%emt 0:02:27]} Be6 $146 {[%emt 0:02:05]} ({Vorgänger:} 10... Bg7 11. Bd3 Be6 12. Rhe1 Nh5 13. Ne2 Be5 14. Bg3 Nxg3 15. hxg3 {½-½ (30) Lane,G (2421)-Safarian,A (2058) Penrith 2003}) 11. f3 {[%emt 0:00:43]} Nd7 {[%emt 0:04:37]} 12. Bf2 {[%emt 0:03:29]} Bg7 {[%emt 0:04:02]} 13. Be2 {[%emt 0:08:38]} Kd8 {[%emt 0:10:25]} 14. Rd2 {[%emt 0:08:25]} Kc7 {[%emt 0:03:28]} 15. Rhd1 {[%emt 0:00:18]} Be5 {[%emt 0:07:35]} 16. g3 {[%emt 0:04:14]} Rhd8 {[%emt 0:03:55]} 17. f4 {[%emt 0:10:53]} Bxc3 {[%emt 0:03:30]} 18. bxc3 {[%emt 0:00:04]} Nb6 {[%emt 0:00:15]} 19. Rxd8 {[%emt 0:17:58]} Rxd8 {[%emt 0:00:11]} 20. Rxd8 {[%emt 0:00:11]} Kxd8 {[%emt 0:00:05]} 21. a3 {[%emt 0:00:13]} h5 {[%emt 0:15:26]} 22. Bc5 {[%emt 0:02:07]} Na4 {[%emt 0:01:19]} 23. Bd4 $15 {[%emt 0:06:11]} c5 {[%emt 0:07:08]} 24. Bb5 {[%emt 0:01:04]} cxd4 {[%emt 0:00:09]} 25. Bxa4 {[%emt 0:00:03]} dxc3 {[%emt 0:00:08]} 26. Bb3 {[%emt 0:01:23]} Kd7 {[%emt 0:01:20]} 27. Kd1 {[%emt 0:00:17]} Bg4+ {[%emt 0:01:32]} 28. Ke1 {[%emt 0:00:01]} Bf3 {[%emt 0:12:39]} 29. e5 {[%emt 0:00:15]} e6 {[%emt 0:06:43]} 30. Kf2 {[%emt 0:00:32]} Bd5 {[%emt 0:00:28]} 31. Ba4+ {[%emt 0:03:39]} Bc6 {[%emt 0:01:38]} 32. Bb3 {[%emt 0:00:17]} Bd5 {[%emt 0:03:44]} 33. Ba4+ {[%emt 0:00:39]} Bc6 {[%emt 0:00:07]} 34. Bb3 {[%emt 0:00:14]} Bd5 1/2-1/2